{"text_format":"1","workbook":"xlsx","n_sheets":1,"sheets":["EVIDENCIJA ZA RABOTA"],"not_rendered":{"charts":0,"images":0,"macros":1,"external_links":0,"defined_names":2,"comments":0,"pivot_tables":0},"unopened":[],"bounds":{"document_bytes":16777216,"sheet_cells":100000,"rows_first":2000,"rows_last":500,"rows_between":2000,"halvings":0,"cell_chars":16384,"cell_head_chars":4096},"cells_cut":0,"cells_raw":0,"read":"whole","date_system":"1900"}

{"sheet":"EVIDENCIJA ZA RABOTA","index":0,"n_rows":304,"n_cols":14,"rows_kept":304,"cut":false,"hidden":false,"merged":[[0,0,2,7],[0,9,1,11]]}
[]
[]
[null,null,null,null,null,null,null,null,null,{"$f":"SUM(J5:J304)","v":15780},{"$f":"SUM(K5:K304)","v":3090},{"$f":"SUM(L5:L304)","v":12690}]
["R.Br.","Ime i Prezime","Adresa","Telefon","Datum na prijava","Datum za realizacijaj","Den.za realiz.","Rabota","Zabele[ka","Za Pla]awe","Plateno","Ne Plateno","DATA","Rabota"]
[1,"Mirko","Bitola","888888","2012-09-27","2012-10-04",{"$f":"IF(F5-M5>=1,F5-M5,\"Pominat rok\")","v":7},"Venecijan","ok",1200,1000,{"$f":"IF(J5-K5>=1,J5-K5,\"Plateno   \")","v":200},{"$f":"TODAY()","v":"2012-09-27"},"PVC"]
[{"$f":"IF(B6=\"\",\"\",A5+1)","v":2},"Nikola","Skopje","444444","2012-09-27","2012-10-06",{"$f":"IF(F6-M6>=1,F6-M6,\"Pominat rok\")","v":9},"Alu.Ograda","ok",3400,600,{"$f":"IF(J6-K6>=1,J6-K6,\"Plateno   \")","v":2800},{"$f":"TODAY()","v":"2012-09-27"},"Venecijan"]
[{"$f":"IF(B7=\"\",\"\",A6+1)","v":3},"Petar","Skopje","111111","2012-09-27","2012-01-03",{"$f":"IF(F7-M7>=1,F7-M7,\"Pominat rok\")","v":"Pominat rok"},"Enterier","ok",7800,null,7800,"2012-09-27","Variolajt"]
[4,"Bojan","Bitola","999999","2012-09-27","2012-01-03",{"$f":"IF(F8-M8>=1,F8-M8,\"Pominat rok\")","v":"Pominat rok"},"PVC","ok",3380,1490,1890,"2012-09-27","Alu.Ograda"]
["",null,null,null,"18.01.2012","2012-01-23",{"$f":"IF(F9-M9>=1,F9-M9,\"Pominat rok\")","v":"Pominat rok"},null,"dvokrilen prozor so komarnik i roletna kafeno za grcija",null,null,"Plateno   ","2012-09-27","Enterier"]
["",null,null,null,"20.01.2012","2012-01-03",{"$f":"IF(F10-M10>=1,F10-M10,\"Pominat rok\")","v":"Pominat rok"},null,".",null,null,"Plateno   ","2012-09-27","Kujna"]
["",null,null,null,"20.01.2012","2012-01-03",{"$f":"IF(F11-M11>=1,F11-M11,\"Pominat rok\")","v":"Pominat rok"},null,".",null,null,"Plateno   ","2012-09-27"]
["",null,null,null,"23.01.2012","2012-01-29",{"$f":"IF(F12-M12>=1,F12-M12,\"Pominat rok\")","v":"Pominat rok"},null,"Komoda za TV so dve polici na zid",null,null,"Plateno   ","2012-09-27"]
["",null,null,null,"24.01.2012","2012-01-03",{"$f":"IF(F13-M13>=1,F13-M13,\"Pominat rok\")","v":"Pominat rok"},null,"prozor 790*1030 bez kip Vais",null,null,"Plateno   ","2012-09-27"]
["",null,null,null,"28.01.2012","2012-02-06",{"$f":"IF(F14-M14>=1,F14-M14,\"Pominat rok\")","v":"Pominat rok"},null,"Edna terasna vrata na tri dela so krilo na sredina ,krajni fiksni + prozor so edno krilo i fiksno",null,null,"Plateno   ","2012-09-27"]
["",null,null,null,"30.01.2012","2012-01-03",{"$f":"IF(F15-M15>=1,F15-M15,\"Pominat rok\")","v":"Pominat rok"},null,"2 prozori vais profil fiksno + krilo",null,null,"Plateno   ","2012-09-27"]
["",null,null,null,"31.01.2012","2012-02-04",{"$f":"IF(F16-M16>=1,F16-M16,\"Pominat rok\")","v":"Pominat rok"},null,"?",null,null,"Plateno   ","2012-09-27"]
["",null,null,null,"12.02.2012","2012-01-03",{"$f":"IF(F17-M17>=1,F17-M17,\"Pominat rok\")","v":"Pominat rok"},null,"vrata so tesen profil i prozor ednokrile veiss",null,null,"Plateno   ","2012-09-27"]
["",null,null,null,"12.02.2012","2012-01-03",{"$f":"IF(F18-M18>=1,F18-M18,\"Pominat rok\")","v":"Pominat rok"},null,"vrata ",null,null,"Plateno   ","2012-09-27"]
["",null,null,null,"12.02.2012","2012-01-03",{"$f":"IF(F19-M19>=1,F19-M19,\"Pominat rok\")","v":"Pominat rok"},null,"vrata",null,null,"Plateno   ","2012-09-27"]
["",null,null,null,"22.02.2012","2012-01-03",{"$f":"IF(F20-M20>=1,F20-M20,\"Pominat rok\")","v":"Pominat rok"},null,"foris",null,null,"Plateno   ","2012-09-27"]
["",null,null,null,"24.02.2012","2012-01-03",{"$f":"IF(F21-M21>=1,F21-M21,\"Pominat rok\")","v":"Pominat rok"},null,"prozor vais.......              !!!!!1240*1250 dvokrilen vajs 9996 den!!!!!!!!!!!",null,null,"Plateno   ","2012-09-27"]
["",null,null,null,null,null,{"$f":"IF(F22-M22>=1,F22-M22,\"Pominat rok\")","v":"Pominat rok"},null,null,null,null,"Plateno   ","2012-09-27"]
["",null,null,null,null,null,{"$f":"IF(F23-M23>=1,F23-M23,\"Pominat rok\")","v":"Pominat rok"},null,null,null,null,"Plateno   ","2012-09-27"]
["",null,null,null,null,null,{"$f":"IF(F24-M24>=1,F24-M24,\"Pominat rok\")","v":"Pominat rok"},null,null,null,null,"Plateno   ","2012-09-27"]
["",null,null,null,null,null,{"$f":"IF(F25-M25>=1,F25-M25,\"Pominat rok\")","v":"Pominat rok"},null,null,null,null,"Plateno   ","2012-09-27"]
["",null,null,null,null,null,{"$f":"IF(F26-M26>=1,F26-M26,\"Pominat rok\")","v":"Pominat rok"},null,null,null,null,"Plateno   ","2012-09-27"]
["",null,null,null,null,null,{"$f":"IF(F27-M27>=1,F27-M27,\"Pominat rok\")","v":"Pominat rok"},null,null,null,null,"Plateno   ","2012-09-27"]
["",null,null,null,null,null,{"$f":"IF(F28-M28>=1,F28-M28,\"Pominat rok\")","v":"Pominat rok"},null,null,null,null,"Plateno   ","2012-09-27"]
["",null,null,null,null,null,{"$f":"IF(F29-M29>=1,F29-M29,\"Pominat rok\")","v":"Pominat rok"},null,null,null,null,"Plateno   ","2012-09-27"]
["",null,null,null,null,null,{"$f":"IF(F30-M30>=1,F30-M30,\"Pominat rok\")","v":"Pominat rok"},null,null,null,null,"Plateno   ","2012-09-27"]
["",null,null,null,null,null,{"$f":"IF(F31-M31>=1,F31-M31,\"Pominat rok\")","v":"Pominat rok"},null,null,null,null,"Plateno   ","2012-09-27"]
["",null,null,null,null,null,{"$f":"IF(F32-M32>=1,F32-M32,\"Pominat rok\")","v":"Pominat rok"},null,null,null,null,"Plateno   ","2012-09-27"]
["",null,null,null,null,null,{"$f":"IF(F33-M33>=1,F33-M33,\"Pominat rok\")","v":"Pominat rok"},null,null,null,null,"Plateno   ","2012-09-27"]
["",null,null,null,null,null,{"$f":"IF(F34-M34>=1,F34-M34,\"Pominat rok\")","v":"Pominat rok"},null,null,null,null,"Plateno   ","2012-09-27"]
["",null,null,null,null,null,{"$f":"IF(F35-M35>=1,F35-M35,\"Pominat rok\")","v":"Pominat rok"},null,null,null,null,"Plateno   ","2012-09-27"]
["",null,null,null,null,null,{"$f":"IF(F36-M36>=1,F36-M36,\"Pominat rok\")","v":"Pominat rok"},null,null,null,null,"Plateno   ","2012-09-27"]
["",null,null,null,null,null,{"$f":"IF(F37-M37>=1,F37-M37,\"Pominat rok\")","v":"Pominat rok"},null,null,null,null,"Plateno   ","2012-09-27"]
["",null,null,null,null,null,{"$f":"IF(F38-M38>=1,F38-M38,\"Pominat rok\")","v":"Pominat rok"},null,null,null,null,"Plateno   ","2012-09-27"]
["",null,null,null,null,null,{"$f":"IF(F39-M39>=1,F39-M39,\"Pominat rok\")","v":"Pominat rok"},null,null,null,null,"Plateno   ","2012-09-27"]
["",null,null,null,null,null,{"$f":"IF(F40-M40>=1,F40-M40,\"Pominat rok\")","v":"Pominat rok"},null,null,null,null,"Plateno   ","2012-09-27"]
["",null,null,null,null,null,{"$f":"IF(F41-M41>=1,F41-M41,\"Pominat rok\")","v":"Pominat rok"},null,null,null,null,"Plateno   ","2012-09-27"]
["",null,null,null,null,null,{"$f":"IF(F42-M42>=1,F42-M42,\"Pominat rok\")","v":"Pominat rok"},null,null,null,null,"Plateno   ","2012-09-27"]
["",null,null,null,null,null,{"$f":"IF(F43-M43>=1,F43-M43,\"Pominat rok\")","v":"Pominat rok"},null,null,null,null,"Plateno   ","2012-09-27"]
["",null,null,null,null,null,{"$f":"IF(F44-M44>=1,F44-M44,\"Pominat rok\")","v":"Pominat rok"},null,null,null,null,"Plateno   ","2012-09-27"]
["",null,null,null,null,null,{"$f":"IF(F45-M45>=1,F45-M45,\"Pominat rok\")","v":"Pominat rok"},null,null,null,null,"Plateno   ","2012-09-27"]
["",null,null,null,null,null,{"$f":"IF(F46-M46>=1,F46-M46,\"Pominat rok\")","v":"Pominat rok"},null,null,null,null,"Plateno   ","2012-09-27"]
["",null,null,null,null,null,{"$f":"IF(F47-M47>=1,F47-M47,\"Pominat rok\")","v":"Pominat rok"},null,null,null,null,"Plateno   ","2012-09-27"]
["",null,null,null,null,null,{"$f":"IF(F48-M48>=1,F48-M48,\"Pominat rok\")","v":"Pominat rok"},null,null,null,null,"Plateno   ","2012-09-27"]
["",null,null,null,null,null,{"$f":"IF(F49-M49>=1,F49-M49,\"Pominat rok\")","v":"Pominat rok"},null,null,null,null,"Plateno   ","2012-09-27"]
["",null,null,null,null,null,{"$f":"IF(F50-M50>=1,F50-M50,\"Pominat rok\")","v":"Pominat rok"},null,null,null,null,"Plateno   ","2012-09-27"]
["",null,null,null,null,null,{"$f":"IF(F51-M51>=1,F51-M51,\"Pominat rok\")","v":"Pominat rok"},null,null,null,null,"Plateno   ","2012-09-27"]
["",null,null,null,null,null,{"$f":"IF(F52-M52>=1,F52-M52,\"Pominat rok\")","v":"Pominat rok"},null,null,null,null,"Plateno   ","2012-09-27"]
["",null,null,null,null,null,{"$f":"IF(F53-M53>=1,F53-M53,\"Pominat rok\")","v":"Pominat rok"},null,null,null,null,"Plateno   ","2012-09-27"]
["",null,null,null,null,null,{"$f":"IF(F54-M54>=1,F54-M54,\"Pominat rok\")","v":"Pominat rok"},null,null,null,null,"Plateno   ","2012-09-27"]
["",null,null,null,null,null,{"$f":"IF(F55-M55>=1,F55-M55,\"Pominat rok\")","v":"Pominat rok"},null,null,null,null,"Plateno   ","2012-09-27"]
["",null,null,null,null,null,{"$f":"IF(F56-M56>=1,F56-M56,\"Pominat rok\")","v":"Pominat rok"},null,null,null,null,"Plateno   ","2012-09-27"]
["",null,null,null,null,null,{"$f":"IF(F57-M57>=1,F57-M57,\"Pominat rok\")","v":"Pominat rok"},null,null,null,null,"Plateno   ","2012-09-27"]
["",null,null,null,null,null,{"$f":"IF(F58-M58>=1,F58-M58,\"Pominat rok\")","v":"Pominat rok"},null,null,null,null,"Plateno   ","2012-09-27"]
["",null,null,null,null,null,{"$f":"IF(F59-M59>=1,F59-M59,\"Pominat rok\")","v":"Pominat rok"},null,null,null,null,"Plateno   ","2012-09-27"]
["",null,null,null,null,null,{"$f":"IF(F60-M60>=1,F60-M60,\"Pominat rok\")","v":"Pominat rok"},null,null,null,null,"Plateno   ","2012-09-27"]
["",null,null,null,null,null,{"$f":"IF(F61-M61>=1,F61-M61,\"Pominat rok\")","v":"Pominat rok"},null,null,null,null,"Plateno   ","2012-09-27"]
["",null,null,null,null,null,{"$f":"IF(F62-M62>=1,F62-M62,\"Pominat rok\")","v":"Pominat rok"},null,null,null,null,"Plateno   ","2012-09-27"]
["",null,null,null,null,null,{"$f":"IF(F63-M63>=1,F63-M63,\"Pominat rok\")","v":"Pominat rok"},null,null,null,null,"Plateno   ","2012-09-27"]
["",null,null,null,null,null,{"$f":"IF(F64-M64>=1,F64-M64,\"Pominat rok\")","v":"Pominat rok"},null,null,null,null,"Plateno   ","2012-09-27"]
["",null,null,null,null,null,{"$f":"IF(F65-M65>=1,F65-M65,\"Pominat rok\")","v":"Pominat rok"},null,null,null,null,"Plateno   ","2012-09-27"]
["",null,null,null,null,null,{"$f":"IF(F66-M66>=1,F66-M66,\"Pominat rok\")","v":"Pominat rok"},null,null,null,null,"Plateno   ","2012-09-27"]
["",null,null,null,null,null,{"$f":"IF(F67-M67>=1,F67-M67,\"Pominat rok\")","v":"Pominat rok"},null,null,null,null,"Plateno   ","2012-09-27"]
["",null,null,null,null,null,{"$f":"IF(F68-M68>=1,F68-M68,\"Pominat rok\")","v":"Pominat rok"},null,null,null,null,"Plateno   ","2012-09-27"]
["",null,null,null,null,null,{"$f":"IF(F69-M69>=1,F69-M69,\"Pominat rok\")","v":"Pominat rok"},null,null,null,null,"Plateno   ","2012-09-27"]
["",null,null,null,null,null,{"$f":"IF(F70-M70>=1,F70-M70,\"Pominat rok\")","v":"Pominat rok"},null,null,null,null,{"$f":"IF(J70-K70>=1,J70-K70,\"Plateno   \")","v":"Plateno   "},{"$f":"TODAY()","v":"2012-09-27"}]
[{"$f":"IF(B71=\"\",\"\",A70+1)","v":""},null,null,null,null,null,{"$f":"IF(F71-M71>=1,F71-M71,\"Pominat rok\")","v":"Pominat rok"},null,null,null,null,"Plateno   ","2012-09-27"]
["",null,null,null,null,null,{"$f":"IF(F72-M72>=1,F72-M72,\"Pominat rok\")","v":"Pominat rok"},null,null,null,null,"Plateno   ","2012-09-27"]
["",null,null,null,null,null,{"$f":"IF(F73-M73>=1,F73-M73,\"Pominat rok\")","v":"Pominat rok"},null,null,null,null,"Plateno   ","2012-09-27"]
["",null,null,null,null,null,{"$f":"IF(F74-M74>=1,F74-M74,\"Pominat rok\")","v":"Pominat rok"},null,null,null,null,"Plateno   ","2012-09-27"]
["",null,null,null,null,null,{"$f":"IF(F75-M75>=1,F75-M75,\"Pominat rok\")","v":"Pominat rok"},null,null,null,null,"Plateno   ","2012-09-27"]
["",null,null,null,null,null,{"$f":"IF(F76-M76>=1,F76-M76,\"Pominat rok\")","v":"Pominat rok"},null,null,null,null,"Plateno   ","2012-09-27"]
["",null,null,null,null,null,{"$f":"IF(F77-M77>=1,F77-M77,\"Pominat rok\")","v":"Pominat rok"},null,null,null,null,"Plateno   ","2012-09-27"]
["",null,null,null,null,null,{"$f":"IF(F78-M78>=1,F78-M78,\"Pominat rok\")","v":"Pominat rok"},null,null,null,null,"Plateno   ","2012-09-27"]
["",null,null,null,null,null,{"$f":"IF(F79-M79>=1,F79-M79,\"Pominat rok\")","v":"Pominat rok"},null,null,null,null,"Plateno   ","2012-09-27"]
["",null,null,null,null,null,{"$f":"IF(F80-M80>=1,F80-M80,\"Pominat rok\")","v":"Pominat rok"},null,null,null,null,"Plateno   ","2012-09-27"]
["",null,null,null,null,null,{"$f":"IF(F81-M81>=1,F81-M81,\"Pominat rok\")","v":"Pominat rok"},null,null,null,null,"Plateno   ","2012-09-27"]
["",null,null,null,null,null,{"$f":"IF(F82-M82>=1,F82-M82,\"Pominat rok\")","v":"Pominat rok"},null,null,null,null,"Plateno   ","2012-09-27"]
["",null,null,null,null,null,{"$f":"IF(F83-M83>=1,F83-M83,\"Pominat rok\")","v":"Pominat rok"},null,null,null,null,"Plateno   ","2012-09-27"]
["",null,null,null,null,null,{"$f":"IF(F84-M84>=1,F84-M84,\"Pominat rok\")","v":"Pominat rok"},null,null,null,null,"Plateno   ","2012-09-27"]
["",null,null,null,null,null,{"$f":"IF(F85-M85>=1,F85-M85,\"Pominat rok\")","v":"Pominat rok"},null,null,null,null,"Plateno   ","2012-09-27"]
["",null,null,null,null,null,{"$f":"IF(F86-M86>=1,F86-M86,\"Pominat rok\")","v":"Pominat rok"},null,null,null,null,"Plateno   ","2012-09-27"]
["",null,null,null,null,null,{"$f":"IF(F87-M87>=1,F87-M87,\"Pominat rok\")","v":"Pominat rok"},null,null,null,null,"Plateno   ","2012-09-27"]
["",null,null,null,null,null,{"$f":"IF(F88-M88>=1,F88-M88,\"Pominat rok\")","v":"Pominat rok"},null,null,null,null,"Plateno   ","2012-09-27"]
["",null,null,null,null,null,{"$f":"IF(F89-M89>=1,F89-M89,\"Pominat rok\")","v":"Pominat rok"},null,null,null,null,"Plateno   ","2012-09-27"]
["",null,null,null,null,null,{"$f":"IF(F90-M90>=1,F90-M90,\"Pominat rok\")","v":"Pominat rok"},null,null,null,null,"Plateno   ","2012-09-27"]
["",null,null,null,null,null,{"$f":"IF(F91-M91>=1,F91-M91,\"Pominat rok\")","v":"Pominat rok"},null,null,null,null,"Plateno   ","2012-09-27"]
["",null,null,null,null,null,{"$f":"IF(F92-M92>=1,F92-M92,\"Pominat rok\")","v":"Pominat rok"},null,null,null,null,"Plateno   ","2012-09-27"]
["",null,null,null,null,null,{"$f":"IF(F93-M93>=1,F93-M93,\"Pominat rok\")","v":"Pominat rok"},null,null,null,null,"Plateno   ","2012-09-27"]
["",null,null,null,null,null,{"$f":"IF(F94-M94>=1,F94-M94,\"Pominat rok\")","v":"Pominat rok"},null,null,null,null,"Plateno   ","2012-09-27"]
["",null,null,null,null,null,{"$f":"IF(F95-M95>=1,F95-M95,\"Pominat rok\")","v":"Pominat rok"},null,null,null,null,"Plateno   ","2012-09-27"]
["",null,null,null,null,null,{"$f":"IF(F96-M96>=1,F96-M96,\"Pominat rok\")","v":"Pominat rok"},null,null,null,null,"Plateno   ","2012-09-27"]
["",null,null,null,null,null,{"$f":"IF(F97-M97>=1,F97-M97,\"Pominat rok\")","v":"Pominat rok"},null,null,null,null,"Plateno   ","2012-09-27"]
["",null,null,null,null,null,{"$f":"IF(F98-M98>=1,F98-M98,\"Pominat rok\")","v":"Pominat rok"},null,null,null,null,"Plateno   ","2012-09-27"]
["",null,null,null,null,null,{"$f":"IF(F99-M99>=1,F99-M99,\"Pominat rok\")","v":"Pominat rok"},null,null,null,null,"Plateno   ","2012-09-27"]
["",null,null,null,null,null,{"$f":"IF(F100-M100>=1,F100-M100,\"Pominat rok\")","v":"Pominat rok"},null,null,null,null,"Plateno   ","2012-09-27"]
["",null,null,null,null,null,{"$f":"IF(F101-M101>=1,F101-M101,\"Pominat rok\")","v":"Pominat rok"},null,null,null,null,"Plateno   ","2012-09-27"]
["",null,null,null,null,null,{"$f":"IF(F102-M102>=1,F102-M102,\"Pominat rok\")","v":"Pominat rok"},null,null,null,null,"Plateno   ","2012-09-27"]
["",null,null,null,null,null,{"$f":"IF(F103-M103>=1,F103-M103,\"Pominat rok\")","v":"Pominat rok"},null,null,null,null,"Plateno   ","2012-09-27"]
["",null,null,null,null,null,{"$f":"IF(F104-M104>=1,F104-M104,\"Pominat rok\")","v":"Pominat rok"},null,null,null,null,"Plateno   ","2012-09-27"]
["",null,null,null,null,null,{"$f":"IF(F105-M105>=1,F105-M105,\"Pominat rok\")","v":"Pominat rok"},null,null,null,null,"Plateno   ","2012-09-27"]
["",null,null,null,null,null,{"$f":"IF(F106-M106>=1,F106-M106,\"Pominat rok\")","v":"Pominat rok"},null,null,null,null,"Plateno   ","2012-09-27"]
["",null,null,null,null,null,{"$f":"IF(F107-M107>=1,F107-M107,\"Pominat rok\")","v":"Pominat rok"},null,null,null,null,"Plateno   ","2012-09-27"]
["",null,null,null,null,null,{"$f":"IF(F108-M108>=1,F108-M108,\"Pominat rok\")","v":"Pominat rok"},null,null,null,null,"Plateno   ","2012-09-27"]
["",null,null,null,null,null,{"$f":"IF(F109-M109>=1,F109-M109,\"Pominat rok\")","v":"Pominat rok"},null,null,null,null,"Plateno   ","2012-09-27"]
["",null,null,null,null,null,{"$f":"IF(F110-M110>=1,F110-M110,\"Pominat rok\")","v":"Pominat rok"},null,null,null,null,"Plateno   ","2012-09-27"]
["",null,null,null,null,null,{"$f":"IF(F111-M111>=1,F111-M111,\"Pominat rok\")","v":"Pominat rok"},null,null,null,null,"Plateno   ","2012-09-27"]
["",null,null,null,null,null,{"$f":"IF(F112-M112>=1,F112-M112,\"Pominat rok\")","v":"Pominat rok"},null,null,null,null,"Plateno   ","2012-09-27"]
["",null,null,null,null,null,{"$f":"IF(F113-M113>=1,F113-M113,\"Pominat rok\")","v":"Pominat rok"},null,null,null,null,"Plateno   ","2012-09-27"]
["",null,null,null,null,null,{"$f":"IF(F114-M114>=1,F114-M114,\"Pominat rok\")","v":"Pominat rok"},null,null,null,null,"Plateno   ","2012-09-27"]
["",null,null,null,null,null,{"$f":"IF(F115-M115>=1,F115-M115,\"Pominat rok\")","v":"Pominat rok"},null,null,null,null,"Plateno   ","2012-09-27"]
["",null,null,null,null,null,{"$f":"IF(F116-M116>=1,F116-M116,\"Pominat rok\")","v":"Pominat rok"},null,null,null,null,"Plateno   ","2012-09-27"]
["",null,null,null,null,null,{"$f":"IF(F117-M117>=1,F117-M117,\"Pominat rok\")","v":"Pominat rok"},null,null,null,null,"Plateno   ","2012-09-27"]
["",null,null,null,null,null,{"$f":"IF(F118-M118>=1,F118-M118,\"Pominat rok\")","v":"Pominat rok"},null,null,null,null,"Plateno   ","2012-09-27"]
["",null,null,null,null,null,{"$f":"IF(F119-M119>=1,F119-M119,\"Pominat rok\")","v":"Pominat rok"},null,null,null,null,"Plateno   ","2012-09-27"]
["",null,null,null,null,null,{"$f":"IF(F120-M120>=1,F120-M120,\"Pominat rok\")","v":"Pominat rok"},null,null,null,null,"Plateno   ","2012-09-27"]
["",null,null,null,null,null,{"$f":"IF(F121-M121>=1,F121-M121,\"Pominat rok\")","v":"Pominat rok"},null,null,null,null,"Plateno   ","2012-09-27"]
["",null,null,null,null,null,{"$f":"IF(F122-M122>=1,F122-M122,\"Pominat rok\")","v":"Pominat rok"},null,null,null,null,"Plateno   ","2012-09-27"]
["",null,null,null,null,null,{"$f":"IF(F123-M123>=1,F123-M123,\"Pominat rok\")","v":"Pominat rok"},null,null,null,null,"Plateno   ","2012-09-27"]
["",null,null,null,null,null,{"$f":"IF(F124-M124>=1,F124-M124,\"Pominat rok\")","v":"Pominat rok"},null,null,null,null,"Plateno   ","2012-09-27"]
["",null,null,null,null,null,{"$f":"IF(F125-M125>=1,F125-M125,\"Pominat rok\")","v":"Pominat rok"},null,null,null,null,"Plateno   ","2012-09-27"]
["",null,null,null,null,null,{"$f":"IF(F126-M126>=1,F126-M126,\"Pominat rok\")","v":"Pominat rok"},null,null,null,null,"Plateno   ","2012-09-27"]
["",null,null,null,null,null,{"$f":"IF(F127-M127>=1,F127-M127,\"Pominat rok\")","v":"Pominat rok"},null,null,null,null,"Plateno   ","2012-09-27"]
["",null,null,null,null,null,{"$f":"IF(F128-M128>=1,F128-M128,\"Pominat rok\")","v":"Pominat rok"},null,null,null,null,"Plateno   ","2012-09-27"]
["",null,null,null,null,null,{"$f":"IF(F129-M129>=1,F129-M129,\"Pominat rok\")","v":"Pominat rok"},null,null,null,null,"Plateno   ","2012-09-27"]
["",null,null,null,null,null,{"$f":"IF(F130-M130>=1,F130-M130,\"Pominat rok\")","v":"Pominat rok"},null,null,null,null,"Plateno   ","2012-09-27"]
["",null,null,null,null,null,{"$f":"IF(F131-M131>=1,F131-M131,\"Pominat rok\")","v":"Pominat rok"},null,null,null,null,"Plateno   ","2012-09-27"]
["",null,null,null,null,null,{"$f":"IF(F132-M132>=1,F132-M132,\"Pominat rok\")","v":"Pominat rok"},null,null,null,null,"Plateno   ","2012-09-27"]
["",null,null,null,null,null,{"$f":"IF(F133-M133>=1,F133-M133,\"Pominat rok\")","v":"Pominat rok"},null,null,null,null,"Plateno   ","2012-09-27"]
["",null,null,null,null,null,{"$f":"IF(F134-M134>=1,F134-M134,\"Pominat rok\")","v":"Pominat rok"},null,null,null,null,{"$f":"IF(J134-K134>=1,J134-K134,\"Plateno   \")","v":"Plateno   "},{"$f":"TODAY()","v":"2012-09-27"}]
[{"$f":"IF(B135=\"\",\"\",A134+1)","v":""},null,null,null,null,null,{"$f":"IF(F135-M135>=1,F135-M135,\"Pominat rok\")","v":"Pominat rok"},null,null,null,null,"Plateno   ","2012-09-27"]
["",null,null,null,null,null,{"$f":"IF(F136-M136>=1,F136-M136,\"Pominat rok\")","v":"Pominat rok"},null,null,null,null,"Plateno   ","2012-09-27"]
["",null,null,null,null,null,{"$f":"IF(F137-M137>=1,F137-M137,\"Pominat rok\")","v":"Pominat rok"},null,null,null,null,"Plateno   ","2012-09-27"]
["",null,null,null,null,null,{"$f":"IF(F138-M138>=1,F138-M138,\"Pominat rok\")","v":"Pominat rok"},null,null,null,null,"Plateno   ","2012-09-27"]
["",null,null,null,null,null,{"$f":"IF(F139-M139>=1,F139-M139,\"Pominat rok\")","v":"Pominat rok"},null,null,null,null,"Plateno   ","2012-09-27"]
["",null,null,null,null,null,{"$f":"IF(F140-M140>=1,F140-M140,\"Pominat rok\")","v":"Pominat rok"},null,null,null,null,"Plateno   ","2012-09-27"]
["",null,null,null,null,null,{"$f":"IF(F141-M141>=1,F141-M141,\"Pominat rok\")","v":"Pominat rok"},null,null,null,null,"Plateno   ","2012-09-27"]
["",null,null,null,null,null,{"$f":"IF(F142-M142>=1,F142-M142,\"Pominat rok\")","v":"Pominat rok"},null,null,null,null,"Plateno   ","2012-09-27"]
["",null,null,null,null,null,{"$f":"IF(F143-M143>=1,F143-M143,\"Pominat rok\")","v":"Pominat rok"},null,null,null,null,"Plateno   ","2012-09-27"]
["",null,null,null,null,null,{"$f":"IF(F144-M144>=1,F144-M144,\"Pominat rok\")","v":"Pominat rok"},null,null,null,null,"Plateno   ","2012-09-27"]
["",null,null,null,null,null,{"$f":"IF(F145-M145>=1,F145-M145,\"Pominat rok\")","v":"Pominat rok"},null,null,null,null,"Plateno   ","2012-09-27"]
["",null,null,null,null,null,{"$f":"IF(F146-M146>=1,F146-M146,\"Pominat rok\")","v":"Pominat rok"},null,null,null,null,"Plateno   ","2012-09-27"]
["",null,null,null,null,null,{"$f":"IF(F147-M147>=1,F147-M147,\"Pominat rok\")","v":"Pominat rok"},null,null,null,null,"Plateno   ","2012-09-27"]
["",null,null,null,null,null,{"$f":"IF(F148-M148>=1,F148-M148,\"Pominat rok\")","v":"Pominat rok"},null,null,null,null,"Plateno   ","2012-09-27"]
["",null,null,null,null,null,{"$f":"IF(F149-M149>=1,F149-M149,\"Pominat rok\")","v":"Pominat rok"},null,null,null,null,"Plateno   ","2012-09-27"]
["",null,null,null,null,null,{"$f":"IF(F150-M150>=1,F150-M150,\"Pominat rok\")","v":"Pominat rok"},null,null,null,null,"Plateno   ","2012-09-27"]
["",null,null,null,null,null,{"$f":"IF(F151-M151>=1,F151-M151,\"Pominat rok\")","v":"Pominat rok"},null,null,null,null,"Plateno   ","2012-09-27"]
["",null,null,null,null,null,{"$f":"IF(F152-M152>=1,F152-M152,\"Pominat rok\")","v":"Pominat rok"},null,null,null,null,"Plateno   ","2012-09-27"]
["",null,null,null,null,null,{"$f":"IF(F153-M153>=1,F153-M153,\"Pominat rok\")","v":"Pominat rok"},null,null,null,null,"Plateno   ","2012-09-27"]
["",null,null,null,null,null,{"$f":"IF(F154-M154>=1,F154-M154,\"Pominat rok\")","v":"Pominat rok"},null,null,null,null,"Plateno   ","2012-09-27"]
["",null,null,null,null,null,{"$f":"IF(F155-M155>=1,F155-M155,\"Pominat rok\")","v":"Pominat rok"},null,null,null,null,"Plateno   ","2012-09-27"]
["",null,null,null,null,null,{"$f":"IF(F156-M156>=1,F156-M156,\"Pominat rok\")","v":"Pominat rok"},null,null,null,null,"Plateno   ","2012-09-27"]
["",null,null,null,null,null,{"$f":"IF(F157-M157>=1,F157-M157,\"Pominat rok\")","v":"Pominat rok"},null,null,null,null,"Plateno   ","2012-09-27"]
["",null,null,null,null,null,{"$f":"IF(F158-M158>=1,F158-M158,\"Pominat rok\")","v":"Pominat rok"},null,null,null,null,"Plateno   ","2012-09-27"]
["",null,null,null,null,null,{"$f":"IF(F159-M159>=1,F159-M159,\"Pominat rok\")","v":"Pominat rok"},null,null,null,null,"Plateno   ","2012-09-27"]
["",null,null,null,null,null,{"$f":"IF(F160-M160>=1,F160-M160,\"Pominat rok\")","v":"Pominat rok"},null,null,null,null,"Plateno   ","2012-09-27"]
["",null,null,null,null,null,{"$f":"IF(F161-M161>=1,F161-M161,\"Pominat rok\")","v":"Pominat rok"},null,null,null,null,"Plateno   ","2012-09-27"]
["",null,null,null,null,null,{"$f":"IF(F162-M162>=1,F162-M162,\"Pominat rok\")","v":"Pominat rok"},null,null,null,null,"Plateno   ","2012-09-27"]
["",null,null,null,null,null,{"$f":"IF(F163-M163>=1,F163-M163,\"Pominat rok\")","v":"Pominat rok"},null,null,null,null,"Plateno   ","2012-09-27"]
["",null,null,null,null,null,{"$f":"IF(F164-M164>=1,F164-M164,\"Pominat rok\")","v":"Pominat rok"},null,null,null,null,"Plateno   ","2012-09-27"]
["",null,null,null,null,null,{"$f":"IF(F165-M165>=1,F165-M165,\"Pominat rok\")","v":"Pominat rok"},null,null,null,null,"Plateno   ","2012-09-27"]
["",null,null,null,null,null,{"$f":"IF(F166-M166>=1,F166-M166,\"Pominat rok\")","v":"Pominat rok"},null,null,null,null,"Plateno   ","2012-09-27"]
["",null,null,null,null,null,{"$f":"IF(F167-M167>=1,F167-M167,\"Pominat rok\")","v":"Pominat rok"},null,null,null,null,"Plateno   ","2012-09-27"]
["",null,null,null,null,null,{"$f":"IF(F168-M168>=1,F168-M168,\"Pominat rok\")","v":"Pominat rok"},null,null,null,null,"Plateno   ","2012-09-27"]
["",null,null,null,null,null,{"$f":"IF(F169-M169>=1,F169-M169,\"Pominat rok\")","v":"Pominat rok"},null,null,null,null,"Plateno   ","2012-09-27"]
["",null,null,null,null,null,{"$f":"IF(F170-M170>=1,F170-M170,\"Pominat rok\")","v":"Pominat rok"},null,null,null,null,"Plateno   ","2012-09-27"]
["",null,null,null,null,null,{"$f":"IF(F171-M171>=1,F171-M171,\"Pominat rok\")","v":"Pominat rok"},null,null,null,null,"Plateno   ","2012-09-27"]
["",null,null,null,null,null,{"$f":"IF(F172-M172>=1,F172-M172,\"Pominat rok\")","v":"Pominat rok"},null,null,null,null,"Plateno   ","2012-09-27"]
["",null,null,null,null,null,{"$f":"IF(F173-M173>=1,F173-M173,\"Pominat rok\")","v":"Pominat rok"},null,null,null,null,"Plateno   ","2012-09-27"]
["",null,null,null,null,null,{"$f":"IF(F174-M174>=1,F174-M174,\"Pominat rok\")","v":"Pominat rok"},null,null,null,null,"Plateno   ","2012-09-27"]
["",null,null,null,null,null,{"$f":"IF(F175-M175>=1,F175-M175,\"Pominat rok\")","v":"Pominat rok"},null,null,null,null,"Plateno   ","2012-09-27"]
["",null,null,null,null,null,{"$f":"IF(F176-M176>=1,F176-M176,\"Pominat rok\")","v":"Pominat rok"},null,null,null,null,"Plateno   ","2012-09-27"]
["",null,null,null,null,null,{"$f":"IF(F177-M177>=1,F177-M177,\"Pominat rok\")","v":"Pominat rok"},null,null,null,null,"Plateno   ","2012-09-27"]
["",null,null,null,null,null,{"$f":"IF(F178-M178>=1,F178-M178,\"Pominat rok\")","v":"Pominat rok"},null,null,null,null,"Plateno   ","2012-09-27"]
["",null,null,null,null,null,{"$f":"IF(F179-M179>=1,F179-M179,\"Pominat rok\")","v":"Pominat rok"},null,null,null,null,"Plateno   ","2012-09-27"]
["",null,null,null,null,null,{"$f":"IF(F180-M180>=1,F180-M180,\"Pominat rok\")","v":"Pominat rok"},null,null,null,null,"Plateno   ","2012-09-27"]
["",null,null,null,null,null,{"$f":"IF(F181-M181>=1,F181-M181,\"Pominat rok\")","v":"Pominat rok"},null,null,null,null,"Plateno   ","2012-09-27"]
["",null,null,null,null,null,{"$f":"IF(F182-M182>=1,F182-M182,\"Pominat rok\")","v":"Pominat rok"},null,null,null,null,"Plateno   ","2012-09-27"]
["",null,null,null,null,null,{"$f":"IF(F183-M183>=1,F183-M183,\"Pominat rok\")","v":"Pominat rok"},null,null,null,null,"Plateno   ","2012-09-27"]
["",null,null,null,null,null,{"$f":"IF(F184-M184>=1,F184-M184,\"Pominat rok\")","v":"Pominat rok"},null,null,null,null,"Plateno   ","2012-09-27"]
["",null,null,null,null,null,{"$f":"IF(F185-M185>=1,F185-M185,\"Pominat rok\")","v":"Pominat rok"},null,null,null,null,"Plateno   ","2012-09-27"]
["",null,null,null,null,null,{"$f":"IF(F186-M186>=1,F186-M186,\"Pominat rok\")","v":"Pominat rok"},null,null,null,null,"Plateno   ","2012-09-27"]
["",null,null,null,null,null,{"$f":"IF(F187-M187>=1,F187-M187,\"Pominat rok\")","v":"Pominat rok"},null,null,null,null,"Plateno   ","2012-09-27"]
["",null,null,null,null,null,{"$f":"IF(F188-M188>=1,F188-M188,\"Pominat rok\")","v":"Pominat rok"},null,null,null,null,"Plateno   ","2012-09-27"]
["",null,null,null,null,null,{"$f":"IF(F189-M189>=1,F189-M189,\"Pominat rok\")","v":"Pominat rok"},null,null,null,null,"Plateno   ","2012-09-27"]
["",null,null,null,null,null,{"$f":"IF(F190-M190>=1,F190-M190,\"Pominat rok\")","v":"Pominat rok"},null,null,null,null,"Plateno   ","2012-09-27"]
["",null,null,null,null,null,{"$f":"IF(F191-M191>=1,F191-M191,\"Pominat rok\")","v":"Pominat rok"},null,null,null,null,"Plateno   ","2012-09-27"]
["",null,null,null,null,null,{"$f":"IF(F192-M192>=1,F192-M192,\"Pominat rok\")","v":"Pominat rok"},null,null,null,null,"Plateno   ","2012-09-27"]
["",null,null,null,null,null,{"$f":"IF(F193-M193>=1,F193-M193,\"Pominat rok\")","v":"Pominat rok"},null,null,null,null,"Plateno   ","2012-09-27"]
["",null,null,null,null,null,{"$f":"IF(F194-M194>=1,F194-M194,\"Pominat rok\")","v":"Pominat rok"},null,null,null,null,"Plateno   ","2012-09-27"]
["",null,null,null,null,null,{"$f":"IF(F195-M195>=1,F195-M195,\"Pominat rok\")","v":"Pominat rok"},null,null,null,null,"Plateno   ","2012-09-27"]
["",null,null,null,null,null,{"$f":"IF(F196-M196>=1,F196-M196,\"Pominat rok\")","v":"Pominat rok"},null,null,null,null,"Plateno   ","2012-09-27"]
["",null,null,null,null,null,{"$f":"IF(F197-M197>=1,F197-M197,\"Pominat rok\")","v":"Pominat rok"},null,null,null,null,"Plateno   ","2012-09-27"]
["",null,null,null,null,null,{"$f":"IF(F198-M198>=1,F198-M198,\"Pominat rok\")","v":"Pominat rok"},null,null,null,null,{"$f":"IF(J198-K198>=1,J198-K198,\"Plateno   \")","v":"Plateno   "},{"$f":"TODAY()","v":"2012-09-27"}]
[{"$f":"IF(B199=\"\",\"\",A198+1)","v":""},null,null,null,null,null,{"$f":"IF(F199-M199>=1,F199-M199,\"Pominat rok\")","v":"Pominat rok"},null,null,null,null,"Plateno   ","2012-09-27"]
["",null,null,null,null,null,{"$f":"IF(F200-M200>=1,F200-M200,\"Pominat rok\")","v":"Pominat rok"},null,null,null,null,"Plateno   ","2012-09-27"]
["",null,null,null,null,null,{"$f":"IF(F201-M201>=1,F201-M201,\"Pominat rok\")","v":"Pominat rok"},null,null,null,null,"Plateno   ","2012-09-27"]
["",null,null,null,null,null,{"$f":"IF(F202-M202>=1,F202-M202,\"Pominat rok\")","v":"Pominat rok"},null,null,null,null,"Plateno   ","2012-09-27"]
["",null,null,null,null,null,{"$f":"IF(F203-M203>=1,F203-M203,\"Pominat rok\")","v":"Pominat rok"},null,null,null,null,"Plateno   ","2012-09-27"]
["",null,null,null,null,null,{"$f":"IF(F204-M204>=1,F204-M204,\"Pominat rok\")","v":"Pominat rok"},null,null,null,null,"Plateno   ","2012-09-27"]
["",null,null,null,null,null,{"$f":"IF(F205-M205>=1,F205-M205,\"Pominat rok\")","v":"Pominat rok"},null,null,null,null,"Plateno   ","2012-09-27"]
["",null,null,null,null,null,{"$f":"IF(F206-M206>=1,F206-M206,\"Pominat rok\")","v":"Pominat rok"},null,null,null,null,"Plateno   ","2012-09-27"]
["",null,null,null,null,null,{"$f":"IF(F207-M207>=1,F207-M207,\"Pominat rok\")","v":"Pominat rok"},null,null,null,null,"Plateno   ","2012-09-27"]
["",null,null,null,null,null,{"$f":"IF(F208-M208>=1,F208-M208,\"Pominat rok\")","v":"Pominat rok"},null,null,null,null,"Plateno   ","2012-09-27"]
["",null,null,null,null,null,{"$f":"IF(F209-M209>=1,F209-M209,\"Pominat rok\")","v":"Pominat rok"},null,null,null,null,"Plateno   ","2012-09-27"]
["",null,null,null,null,null,{"$f":"IF(F210-M210>=1,F210-M210,\"Pominat rok\")","v":"Pominat rok"},null,null,null,null,"Plateno   ","2012-09-27"]
["",null,null,null,null,null,{"$f":"IF(F211-M211>=1,F211-M211,\"Pominat rok\")","v":"Pominat rok"},null,null,null,null,"Plateno   ","2012-09-27"]
["",null,null,null,null,null,{"$f":"IF(F212-M212>=1,F212-M212,\"Pominat rok\")","v":"Pominat rok"},null,null,null,null,"Plateno   ","2012-09-27"]
["",null,null,null,null,null,{"$f":"IF(F213-M213>=1,F213-M213,\"Pominat rok\")","v":"Pominat rok"},null,null,null,null,"Plateno   ","2012-09-27"]
["",null,null,null,null,null,{"$f":"IF(F214-M214>=1,F214-M214,\"Pominat rok\")","v":"Pominat rok"},null,null,null,null,"Plateno   ","2012-09-27"]
["",null,null,null,null,null,{"$f":"IF(F215-M215>=1,F215-M215,\"Pominat rok\")","v":"Pominat rok"},null,null,null,null,"Plateno   ","2012-09-27"]
["",null,null,null,null,null,{"$f":"IF(F216-M216>=1,F216-M216,\"Pominat rok\")","v":"Pominat rok"},null,null,null,null,"Plateno   ","2012-09-27"]
["",null,null,null,null,null,{"$f":"IF(F217-M217>=1,F217-M217,\"Pominat rok\")","v":"Pominat rok"},null,null,null,null,"Plateno   ","2012-09-27"]
["",null,null,null,null,null,{"$f":"IF(F218-M218>=1,F218-M218,\"Pominat rok\")","v":"Pominat rok"},null,null,null,null,"Plateno   ","2012-09-27"]
["",null,null,null,null,null,{"$f":"IF(F219-M219>=1,F219-M219,\"Pominat rok\")","v":"Pominat rok"},null,null,null,null,"Plateno   ","2012-09-27"]
["",null,null,null,null,null,{"$f":"IF(F220-M220>=1,F220-M220,\"Pominat rok\")","v":"Pominat rok"},null,null,null,null,"Plateno   ","2012-09-27"]
["",null,null,null,null,null,{"$f":"IF(F221-M221>=1,F221-M221,\"Pominat rok\")","v":"Pominat rok"},null,null,null,null,"Plateno   ","2012-09-27"]
["",null,null,null,null,null,{"$f":"IF(F222-M222>=1,F222-M222,\"Pominat rok\")","v":"Pominat rok"},null,null,null,null,"Plateno   ","2012-09-27"]
["",null,null,null,null,null,{"$f":"IF(F223-M223>=1,F223-M223,\"Pominat rok\")","v":"Pominat rok"},null,null,null,null,"Plateno   ","2012-09-27"]
["",null,null,null,null,null,{"$f":"IF(F224-M224>=1,F224-M224,\"Pominat rok\")","v":"Pominat rok"},null,null,null,null,"Plateno   ","2012-09-27"]
["",null,null,null,null,null,{"$f":"IF(F225-M225>=1,F225-M225,\"Pominat rok\")","v":"Pominat rok"},null,null,null,null,"Plateno   ","2012-09-27"]
["",null,null,null,null,null,{"$f":"IF(F226-M226>=1,F226-M226,\"Pominat rok\")","v":"Pominat rok"},null,null,null,null,"Plateno   ","2012-09-27"]
["",null,null,null,null,null,{"$f":"IF(F227-M227>=1,F227-M227,\"Pominat rok\")","v":"Pominat rok"},null,null,null,null,"Plateno   ","2012-09-27"]
["",null,null,null,null,null,{"$f":"IF(F228-M228>=1,F228-M228,\"Pominat rok\")","v":"Pominat rok"},null,null,null,null,"Plateno   ","2012-09-27"]
["",null,null,null,null,null,{"$f":"IF(F229-M229>=1,F229-M229,\"Pominat rok\")","v":"Pominat rok"},null,null,null,null,"Plateno   ","2012-09-27"]
["",null,null,null,null,null,{"$f":"IF(F230-M230>=1,F230-M230,\"Pominat rok\")","v":"Pominat rok"},null,null,null,null,"Plateno   ","2012-09-27"]
["",null,null,null,null,null,{"$f":"IF(F231-M231>=1,F231-M231,\"Pominat rok\")","v":"Pominat rok"},null,null,null,null,"Plateno   ","2012-09-27"]
["",null,null,null,null,null,{"$f":"IF(F232-M232>=1,F232-M232,\"Pominat rok\")","v":"Pominat rok"},null,null,null,null,"Plateno   ","2012-09-27"]
["",null,null,null,null,null,{"$f":"IF(F233-M233>=1,F233-M233,\"Pominat rok\")","v":"Pominat rok"},null,null,null,null,"Plateno   ","2012-09-27"]
["",null,null,null,null,null,{"$f":"IF(F234-M234>=1,F234-M234,\"Pominat rok\")","v":"Pominat rok"},null,null,null,null,"Plateno   ","2012-09-27"]
["",null,null,null,null,null,{"$f":"IF(F235-M235>=1,F235-M235,\"Pominat rok\")","v":"Pominat rok"},null,null,null,null,"Plateno   ","2012-09-27"]
["",null,null,null,null,null,{"$f":"IF(F236-M236>=1,F236-M236,\"Pominat rok\")","v":"Pominat rok"},null,null,null,null,"Plateno   ","2012-09-27"]
["",null,null,null,null,null,{"$f":"IF(F237-M237>=1,F237-M237,\"Pominat rok\")","v":"Pominat rok"},null,null,null,null,"Plateno   ","2012-09-27"]
["",null,null,null,null,null,{"$f":"IF(F238-M238>=1,F238-M238,\"Pominat rok\")","v":"Pominat rok"},null,null,null,null,"Plateno   ","2012-09-27"]
["",null,null,null,null,null,{"$f":"IF(F239-M239>=1,F239-M239,\"Pominat rok\")","v":"Pominat rok"},null,null,null,null,"Plateno   ","2012-09-27"]
["",null,null,null,null,null,{"$f":"IF(F240-M240>=1,F240-M240,\"Pominat rok\")","v":"Pominat rok"},null,null,null,null,"Plateno   ","2012-09-27"]
["",null,null,null,null,null,{"$f":"IF(F241-M241>=1,F241-M241,\"Pominat rok\")","v":"Pominat rok"},null,null,null,null,"Plateno   ","2012-09-27"]
["",null,null,null,null,null,{"$f":"IF(F242-M242>=1,F242-M242,\"Pominat rok\")","v":"Pominat rok"},null,null,null,null,"Plateno   ","2012-09-27"]
["",null,null,null,null,null,{"$f":"IF(F243-M243>=1,F243-M243,\"Pominat rok\")","v":"Pominat rok"},null,null,null,null,"Plateno   ","2012-09-27"]
["",null,null,null,null,null,{"$f":"IF(F244-M244>=1,F244-M244,\"Pominat rok\")","v":"Pominat rok"},null,null,null,null,"Plateno   ","2012-09-27"]
["",null,null,null,null,null,{"$f":"IF(F245-M245>=1,F245-M245,\"Pominat rok\")","v":"Pominat rok"},null,null,null,null,"Plateno   ","2012-09-27"]
["",null,null,null,null,null,{"$f":"IF(F246-M246>=1,F246-M246,\"Pominat rok\")","v":"Pominat rok"},null,null,null,null,"Plateno   ","2012-09-27"]
["",null,null,null,null,null,{"$f":"IF(F247-M247>=1,F247-M247,\"Pominat rok\")","v":"Pominat rok"},null,null,null,null,"Plateno   ","2012-09-27"]
["",null,null,null,null,null,{"$f":"IF(F248-M248>=1,F248-M248,\"Pominat rok\")","v":"Pominat rok"},null,null,null,null,"Plateno   ","2012-09-27"]
["",null,null,null,null,null,{"$f":"IF(F249-M249>=1,F249-M249,\"Pominat rok\")","v":"Pominat rok"},null,null,null,null,"Plateno   ","2012-09-27"]
["",null,null,null,null,null,{"$f":"IF(F250-M250>=1,F250-M250,\"Pominat rok\")","v":"Pominat rok"},null,null,null,null,"Plateno   ","2012-09-27"]
["",null,null,null,null,null,{"$f":"IF(F251-M251>=1,F251-M251,\"Pominat rok\")","v":"Pominat rok"},null,null,null,null,"Plateno   ","2012-09-27"]
["",null,null,null,null,null,{"$f":"IF(F252-M252>=1,F252-M252,\"Pominat rok\")","v":"Pominat rok"},null,null,null,null,"Plateno   ","2012-09-27"]
["",null,null,null,null,null,{"$f":"IF(F253-M253>=1,F253-M253,\"Pominat rok\")","v":"Pominat rok"},null,null,null,null,"Plateno   ","2012-09-27"]
["",null,null,null,null,null,{"$f":"IF(F254-M254>=1,F254-M254,\"Pominat rok\")","v":"Pominat rok"},null,null,null,null,"Plateno   ","2012-09-27"]
["",null,null,null,null,null,{"$f":"IF(F255-M255>=1,F255-M255,\"Pominat rok\")","v":"Pominat rok"},null,null,null,null,"Plateno   ","2012-09-27"]
["",null,null,null,null,null,{"$f":"IF(F256-M256>=1,F256-M256,\"Pominat rok\")","v":"Pominat rok"},null,null,null,null,"Plateno   ","2012-09-27"]
["",null,null,null,null,null,{"$f":"IF(F257-M257>=1,F257-M257,\"Pominat rok\")","v":"Pominat rok"},null,null,null,null,"Plateno   ","2012-09-27"]
["",null,null,null,null,null,{"$f":"IF(F258-M258>=1,F258-M258,\"Pominat rok\")","v":"Pominat rok"},null,null,null,null,"Plateno   ","2012-09-27"]
["",null,null,null,null,null,{"$f":"IF(F259-M259>=1,F259-M259,\"Pominat rok\")","v":"Pominat rok"},null,null,null,null,"Plateno   ","2012-09-27"]
["",null,null,null,null,null,{"$f":"IF(F260-M260>=1,F260-M260,\"Pominat rok\")","v":"Pominat rok"},null,null,null,null,"Plateno   ","2012-09-27"]
["",null,null,null,null,null,{"$f":"IF(F261-M261>=1,F261-M261,\"Pominat rok\")","v":"Pominat rok"},null,null,null,null,"Plateno   ","2012-09-27"]
["",null,null,null,null,null,{"$f":"IF(F262-M262>=1,F262-M262,\"Pominat rok\")","v":"Pominat rok"},null,null,null,null,{"$f":"IF(J262-K262>=1,J262-K262,\"Plateno   \")","v":"Plateno   "},{"$f":"TODAY()","v":"2012-09-27"}]
[{"$f":"IF(B263=\"\",\"\",A262+1)","v":""},null,null,null,null,null,{"$f":"IF(F263-M263>=1,F263-M263,\"Pominat rok\")","v":"Pominat rok"},null,null,null,null,"Plateno   ","2012-09-27"]
["",null,null,null,null,null,{"$f":"IF(F264-M264>=1,F264-M264,\"Pominat rok\")","v":"Pominat rok"},null,null,null,null,"Plateno   ","2012-09-27"]
["",null,null,null,null,null,{"$f":"IF(F265-M265>=1,F265-M265,\"Pominat rok\")","v":"Pominat rok"},null,null,null,null,"Plateno   ","2012-09-27"]
["",null,null,null,null,null,{"$f":"IF(F266-M266>=1,F266-M266,\"Pominat rok\")","v":"Pominat rok"},null,null,null,null,"Plateno   ","2012-09-27"]
["",null,null,null,null,null,{"$f":"IF(F267-M267>=1,F267-M267,\"Pominat rok\")","v":"Pominat rok"},null,null,null,null,"Plateno   ","2012-09-27"]
["",null,null,null,null,null,{"$f":"IF(F268-M268>=1,F268-M268,\"Pominat rok\")","v":"Pominat rok"},null,null,null,null,"Plateno   ","2012-09-27"]
["",null,null,null,null,null,{"$f":"IF(F269-M269>=1,F269-M269,\"Pominat rok\")","v":"Pominat rok"},null,null,null,null,"Plateno   ","2012-09-27"]
["",null,null,null,null,null,{"$f":"IF(F270-M270>=1,F270-M270,\"Pominat rok\")","v":"Pominat rok"},null,null,null,null,"Plateno   ","2012-09-27"]
["",null,null,null,null,null,{"$f":"IF(F271-M271>=1,F271-M271,\"Pominat rok\")","v":"Pominat rok"},null,null,null,null,"Plateno   ","2012-09-27"]
["",null,null,null,null,null,{"$f":"IF(F272-M272>=1,F272-M272,\"Pominat rok\")","v":"Pominat rok"},null,null,null,null,"Plateno   ","2012-09-27"]
["",null,null,null,null,null,{"$f":"IF(F273-M273>=1,F273-M273,\"Pominat rok\")","v":"Pominat rok"},null,null,null,null,"Plateno   ","2012-09-27"]
["",null,null,null,null,null,{"$f":"IF(F274-M274>=1,F274-M274,\"Pominat rok\")","v":"Pominat rok"},null,null,null,null,"Plateno   ","2012-09-27"]
["",null,null,null,null,null,{"$f":"IF(F275-M275>=1,F275-M275,\"Pominat rok\")","v":"Pominat rok"},null,null,null,null,"Plateno   ","2012-09-27"]
["",null,null,null,null,null,{"$f":"IF(F276-M276>=1,F276-M276,\"Pominat rok\")","v":"Pominat rok"},null,null,null,null,"Plateno   ","2012-09-27"]
["",null,null,null,null,null,{"$f":"IF(F277-M277>=1,F277-M277,\"Pominat rok\")","v":"Pominat rok"},null,null,null,null,"Plateno   ","2012-09-27"]
["",null,null,null,null,null,{"$f":"IF(F278-M278>=1,F278-M278,\"Pominat rok\")","v":"Pominat rok"},null,null,null,null,"Plateno   ","2012-09-27"]
["",null,null,null,null,null,{"$f":"IF(F279-M279>=1,F279-M279,\"Pominat rok\")","v":"Pominat rok"},null,null,null,null,"Plateno   ","2012-09-27"]
["",null,null,null,null,null,{"$f":"IF(F280-M280>=1,F280-M280,\"Pominat rok\")","v":"Pominat rok"},null,null,null,null,"Plateno   ","2012-09-27"]
["",null,null,null,null,null,{"$f":"IF(F281-M281>=1,F281-M281,\"Pominat rok\")","v":"Pominat rok"},null,null,null,null,"Plateno   ","2012-09-27"]
["",null,null,null,null,null,{"$f":"IF(F282-M282>=1,F282-M282,\"Pominat rok\")","v":"Pominat rok"},null,null,null,null,"Plateno   ","2012-09-27"]
["",null,null,null,null,null,{"$f":"IF(F283-M283>=1,F283-M283,\"Pominat rok\")","v":"Pominat rok"},null,null,null,null,"Plateno   ","2012-09-27"]
["",null,null,null,null,null,{"$f":"IF(F284-M284>=1,F284-M284,\"Pominat rok\")","v":"Pominat rok"},null,null,null,null,"Plateno   ","2012-09-27"]
["",null,null,null,null,null,{"$f":"IF(F285-M285>=1,F285-M285,\"Pominat rok\")","v":"Pominat rok"},null,null,null,null,"Plateno   ","2012-09-27"]
["",null,null,null,null,null,{"$f":"IF(F286-M286>=1,F286-M286,\"Pominat rok\")","v":"Pominat rok"},null,null,null,null,"Plateno   ","2012-09-27"]
["",null,null,null,null,null,{"$f":"IF(F287-M287>=1,F287-M287,\"Pominat rok\")","v":"Pominat rok"},null,null,null,null,"Plateno   ","2012-09-27"]
["",null,null,null,null,null,{"$f":"IF(F288-M288>=1,F288-M288,\"Pominat rok\")","v":"Pominat rok"},null,null,null,null,"Plateno   ","2012-09-27"]
["",null,null,null,null,null,{"$f":"IF(F289-M289>=1,F289-M289,\"Pominat rok\")","v":"Pominat rok"},null,null,null,null,"Plateno   ","2012-09-27"]
["",null,null,null,null,null,{"$f":"IF(F290-M290>=1,F290-M290,\"Pominat rok\")","v":"Pominat rok"},null,null,null,null,"Plateno   ","2012-09-27"]
["",null,null,null,null,null,{"$f":"IF(F291-M291>=1,F291-M291,\"Pominat rok\")","v":"Pominat rok"},null,null,null,null,"Plateno   ","2012-09-27"]
["",null,null,null,null,null,{"$f":"IF(F292-M292>=1,F292-M292,\"Pominat rok\")","v":"Pominat rok"},null,null,null,null,"Plateno   ","2012-09-27"]
["",null,null,null,null,null,{"$f":"IF(F293-M293>=1,F293-M293,\"Pominat rok\")","v":"Pominat rok"},null,null,null,null,"Plateno   ","2012-09-27"]
["",null,null,null,null,null,{"$f":"IF(F294-M294>=1,F294-M294,\"Pominat rok\")","v":"Pominat rok"},null,null,null,null,"Plateno   ","2012-09-27"]
["",null,null,null,null,null,{"$f":"IF(F295-M295>=1,F295-M295,\"Pominat rok\")","v":"Pominat rok"},null,null,null,null,"Plateno   ","2012-09-27"]
["",null,null,null,null,null,{"$f":"IF(F296-M296>=1,F296-M296,\"Pominat rok\")","v":"Pominat rok"},null,null,null,null,"Plateno   ","2012-09-27"]
["",null,null,null,null,null,{"$f":"IF(F297-M297>=1,F297-M297,\"Pominat rok\")","v":"Pominat rok"},null,null,null,null,"Plateno   ","2012-09-27"]
["",null,null,null,null,null,{"$f":"IF(F298-M298>=1,F298-M298,\"Pominat rok\")","v":"Pominat rok"},null,null,null,null,"Plateno   ","2012-09-27"]
["",null,null,null,null,null,{"$f":"IF(F299-M299>=1,F299-M299,\"Pominat rok\")","v":"Pominat rok"},null,null,null,null,"Plateno   ","2012-09-27"]
["",null,null,null,null,null,{"$f":"IF(F300-M300>=1,F300-M300,\"Pominat rok\")","v":"Pominat rok"},null,null,null,null,"Plateno   ","2012-09-27"]
["",null,null,null,null,null,{"$f":"IF(F301-M301>=1,F301-M301,\"Pominat rok\")","v":"Pominat rok"},null,null,null,null,"Plateno   ","2012-09-27"]
["",null,null,null,null,null,{"$f":"IF(F302-M302>=1,F302-M302,\"Pominat rok\")","v":"Pominat rok"},null,null,null,null,"Plateno   ","2012-09-27"]
["",null,null,null,null,null,{"$f":"IF(F303-M303>=1,F303-M303,\"Pominat rok\")","v":"Pominat rok"},null,null,null,null,"Plateno   ","2012-09-27"]
["",null,null,null,null,null,{"$f":"IF(F304-M304>=1,F304-M304,\"Pominat rok\")","v":"Pominat rok"},null,null,null,null,"Plateno   ","2012-09-27"]